Cogmind - Beta 13 @@@ ROGUE MODE // 2024.03.04 @ 07:16:32 Player: ldi (hl). (hl) Result: Destroyed by P-70 Sage with Tesla Rifle Performance ------------- Evolutions (5) 2500 Regions Visited (11) 2200 Robots Destroyed (231) 1155 Value Destroyed (9916) 9916 Prototype IDs (15) 300 Alien Tech Used (0) 0 Bonus (3765) 3765 TOTAL SCORE: 19836 Bonus ------- Triggered High Security 500 High Alert Combat Kills 2775 Follower Combat Kills 462 Network Hubs Disabled 200 Met R17 at Cetus 500 Friendly Fire -672 Cogmind --------- Core Integrity 0/1000 Matter 300/300 Energy 99/100 System Corruption 18% Temperature Cool (0) Movement Core (50) Location -5/Factory Parts ------- > --- POWER (2) -------- (None) > --- PROPULSION (3) --- (None) > --- UTILITY (10) ----- (None) > --- WEAPON (2) ------- (None) > --- INVENTORY (5) ---- Improved Matter Compressor (300) Cooled Plasma Cannon Cooled Plasma Cannon Gauss Rifle Mini Grenade Launcher Peak State ------------ > --- POWER ------------ Quantum Reactor Quantum Reactor > --- PROPULSION ------- Improved Treads Centrium Heavy Treads > --- UTILITY ---------- Advanced Heat Sink High-capacity Storage Unit Targeting Computer Improved Target Analyzer Armor Integrity Analyzer Improved Medium Armor Plating Improved Medium Armor Plating Centrium Medium Armor Plating Centrium Medium Armor Plating Force Field > --- WEAPON ----------- Advanced KE Penetrator Advanced KE Penetrator > --- INVENTORY -------- Cooled Deuterium Engine Centrium Heavy Treads Centrium Heavy Treads Improved Sensor Array Hardened Light Armor Plating Improved Medium Armor Plating Wave Gun Advanced Variable Charge Gun Advanced Variable Charge Gun Advanced Variable Charge Gun Heavy Plasma Cannon Coil Gun Coil Gun KE Penetrator KE Penetrator Hypervelocity Coil Gun Advanced KE Penetrator Mini Grenade Launcher [Rating: 113] Favorites ----------- Power Cooled Deuterium Engine Engine Cooled Deuterium Engine Power Core Enhanced Fission Core Reactor Quantum Reactor Propulsion Light Treads Treads Light Treads Leg Aluminum Leg Flight Unit Nuclear Pulse Thruster Utility High-capacity Storage Unit Device Advanced Heat Sink Storage High-capacity Storage Unit Processor Targeting Computer Protection Hardened Heavy Armor Plating Weapon Advanced KE Penetrator Energy Gun Heavy Laser Energy Cannon Heavy Particle Cannon Ballistic Gun Advanced KE Penetrator Ballistic Cannon Assault Cannon Launcher Mini Grenade Launcher Build | -11 -10 -9 -9 -8 -7 -6 -6 -6 -6 -6 -5 ------- Run | Yrd Mat Mat Min Mat Fac Fac Ext Cet Arc Hub Fac Slots Evolved 10 | . . 2 . 2 2 2 . . . . 2 Power 1 | . . . . . . . . . . . 1 Propulsion 1 | . . 1 . . . . . . . . . Utility 8 | . . 1 . 2 2 2 . . . . 1 Weapon . | . . . . . . . . . . . . Parts Attached 156 | 6 5 8 2 12 14 4 29 21 4 1 50 Power 16 | 1 1 1 . 3 . . 1 1 1 . 7 Engine 9 | 1 1 1 . 3 . . 1 1 . . 1 Core 4 | . . . . . . . . . . . 4 Reactor 3 | . . . . . . . . . 1 . 2 Propulsion 37 | 2 2 4 . 3 4 . 10 2 2 . 8 Treads 27 | . . 3 . 3 4 . 10 2 2 . 3 Leg 6 | 2 2 1 . . . . . . . . 1 Wheel . | . . . . . . . . . . . . Hover . | . . . . . . . . . . . . Flight 4 | . . . . . . . . . . . 4 Utility 63 | 1 2 1 2 3 7 4 12 12 1 1 17 Device 14 | . 1 . . . 2 1 2 2 . 1 5 Storage 4 | 1 1 . . . . . . 1 . . 1 Processor 10 | . . . 1 2 . . 1 3 . . 3 Hackware . | . . . . . . . . . . . . Protection 35 | . . 1 1 1 5 3 9 6 1 . 8 Artifact . | . . . . . . . . . . . . Weapon 40 | 2 . 2 . 3 3 . 6 6 . . 18 Energy Gun 7 | . . 1 . 1 . . 2 2 . . 1 Energy Cannon 10 | . . . . . 2 . 3 . . . 5 Ballistic Gun 18 | 2 . . . 1 . . 1 3 . . 11 Ballistic Cannon 1 | . . . . 1 . . . . . . . Launcher 4 | . . 1 . . 1 . . 1 . . 1 Special Weapon . | . . . . . . . . . . . . Impact Weapon . | . . . . . . . . . . . . Slashing Weapon . | . . . . . . . . . . . . Piercing Weapon . | . . . . . . . . . . . . Special Melee Weapon . | . . . . . . . . . . . . Unidentified Prototypes 9 | . . . . 2 . . . 4 . . 3 Parts Lost 58 | . 1 3 . 1 1 1 12 6 . . 33 Power 6 | . . . . . . . . 1 . . 5 Propulsion 12 | . 1 . . . 1 . 3 . . . 7 Utility 23 | . . 1 . . . 1 6 5 . . 10 Weapon 17 | . . 2 . 1 . . 3 . . . 11 Highest Loss Streak 11 | . 1 2 . 1 1 1 3 3 . . 11 To Critical Strikes . | . . . . . . . . . . . . Average Slot Usage (%) 87 | . 92 96 84 88 90 85 88 90 93 93 77 Engine 5 | . 14 11 11 9 7 6 6 6 . . . Reactor 2 | . . . . . . . . . 5 6 7 Treads 15 | . . 12 33 27 23 20 19 14 13 13 10 Leg 3 | . 24 20 . . . . . . . . . Device 10 | . 10 11 11 1 7 6 12 12 13 13 11 Storage 7 | . 14 11 11 9 7 6 6 6 6 6 4 Processor 9 | . . . 6 16 15 13 7 8 13 13 11 Protection 16 | . . 9 1 7 13 19 21 27 26 26 14 Energy Gun 1 | . . 1 . 7 . . 4 2 . . . Energy Cannon 2 | . . . . . 3 6 6 1 . . . Ballistic Gun 8 | . 28 16 . 1 7 6 1 8 13 13 9 Ballistic Cannon 1 | . . . . 8 3 . . . . . . Naked Turns 14 | . . . . . . . . . . . 14 Heaviest Build 149 | 13 49 54 50 80 89 95 111 112 108 108 149 Greatest Support 108 | 20 20 60 60 62 62 60 66 102 103 103 108 Greatest Overweight (x) 23 | . 2 1 . 1 1 1 2 1 1 1 23 Average Overweight (x) . | . 1 . . . . 1 1 . . 1 . Largest Inventory Capacity 20 | 8 20 20 20 20 20 20 20 20 20 20 20 Average Capacity 19 | 6 14 20 20 20 20 20 20 20 20 20 19 Most Carried 20 | . 5 10 10 20 20 20 20 20 20 20 20 Average Carried 16 | . 2 5 9 18 19 19 18 19 19 20 17 Final Capacity 20 | 8 20 20 20 20 20 20 20 20 20 20 5 Final Carried 20 | . 5 10 9 20 19 19 20 20 20 20 5 Class Distribution -------------------- 81% | Scavenger-Mutant 17% | Mutant Dominant Class ---------------- Scavenger-Mutant | -10/Materials Scavenger-Mutant | -9/Materials Scavenger-Mutant | -9/Mines Mutant | -8/Materials Mutant | -7/Factory Scavenger-Mutant | -6/Factory Scavenger-Mutant | -6/Extension Scavenger-Mutant | -6/Cetus Scavenger-Mutant | -6/Archives Scavenger-Mutant | -6/Hub_04(d) Scavenger-Mutant | -5/Factory Resources | -11 -10 -9 -9 -8 -7 -6 -6 -6 -6 -6 -5 ----------- Run | Yrd Mat Mat Min Mat Fac Fac Ext Cet Arc Hub Fac Matter Collected 5387 | 231 155 211 41 311 478 357 393 588 164 120 2338 Remotely . | . . . . . . . . . . . . Salvage Created 11411 | . 428 337 113 428 728 689 1648 1008 320 354 5358 Parts 489 | . 15 31 6 43 52 29 59 41 19 7 187 Haulers Intercepted 12 | . 1 1 . 2 1 . . . . 1 6 Recyclers Shooed 14 | . 1 . . . 4 . 4 . . . 5 Parts Field Recycled . | . . . . . . . . . . . . Retrieved Matter . | . . . . . . . . . . . . Parts Self-Destructed . | . . . . . . . . . . . . Prevented . | . . . . . . . . . . . . Kills | -11 -10 -9 -9 -8 -7 -6 -6 -6 -6 -6 -5 ------- Run | Yrd Mat Mat Min Mat Fac Fac Ext Cet Arc Hub Fac Combat Hostiles Destroyed 175 | . 6 6 4 13 12 15 21 21 4 3 70 Melee 2 | . . . 1 . . 1 . . . . . Guns 109 | . 6 3 . 8 2 8 5 8 4 3 62 Cannons 39 | . . . . 5 7 6 13 3 . . 5 AOE 16 | . . 3 3 . 3 . . 7 . . . Classes Destroyed 18 | . 3 5 . 2 2 . 3 . . . 3 Worker 11 | . . 1 1 . 3 . . . . 2 4 Builder 18 | . . 2 . 2 3 1 2 . . . 8 Tunneler 2 | . . 1 . 1 . . . . . . . Hauler 12 | . 1 1 . 2 1 . . . . 1 6 Recycler 9 | . 1 . . . 1 . 2 . . . 5 Mechanic 2 | . . . . . . . . . . . 2 Operator 1 | . . . . . . . 1 . . . . Watcher 3 | . . 1 . . . . . 2 . . . Swarmer 36 | . . . . 6 3 7 2 6 . . 12 Grunt 65 | . 6 3 4 3 4 7 7 4 . . 27 Brawler 5 | . . . . . . . 1 . . . 4 Duelist 1 | . . . . . . . . . . . 1 Protector 2 | . . . . . . . . . . . 2 Sentry 21 | . . 3 . 3 1 . 7 . 4 3 . Hunter 18 | . . . . 1 . . 2 4 . . 11 Programmer 16 | . . . . . 2 1 . . . . 13 Heavy 2 | . . . . . 2 . . . . . . Behemoth 2 | . . . . . . . 2 . . . . Cetus Guard 7 | . . . . . . . . 7 . . . Best Kill Streak 14 | . 2 2 3 4 4 4 3 9 1 3 14 Combat Bots Only 11 | . 2 2 2 4 3 4 3 9 1 1 11 Max Kills in Single Turn 3 | . 1 1 2 2 2 2 2 3 1 3 2 Gunslinging 1 | . . . . . . . . . . . 1 Exploded 3 | . . 1 1 . 2 . . 3 . . . Melee 1 | . . . 1 . . 1 . . . . . Uniques/NPCs Destroyed 1 | . . . . . . . 1 . . . . A7 (-6/Extension) Combat | -11 -10 -9 -9 -8 -7 -6 -6 -6 -6 -6 -5 -------- Run | Yrd Mat Mat Min Mat Fac Fac Ext Cet Arc Hub Fac Hostile Shots Fired 1896 | . 41 35 14 99 95 78 419 243 26 141 705 Missed 518 | . 12 8 2 29 31 24 158 70 9 47 128 Damage Taken 19305 | . 397 375 160 909 1316 946 2868 3554 185 584 8011 Core 1696 | . 99 50 11 59 23 33 197 185 . 24 1015 Absorbed by Shields 3346 | . . . . . . . 130 172 196 410 2438 Reduced by Siege Mode 520 | . . . . . . . . 152 . 3 365 Redirected to Shielding 50 | . . 50 . . . . . . . . . Core Remaining (%) 79 | 100 60 . 84 89 96 . . . . 48 . Volleys Fired 636 | . 42 37 4 37 48 41 114 83 16 17 197 Largest 2 | . 2 2 1 2 2 2 2 2 2 2 2 Hottest 240 | . 40 76 30 100 103 103 159 159 70 70 240 Shots Fired 1233 | . 84 70 4 73 92 82 227 148 32 34 387 Gun 900 | . 84 62 . 36 44 41 106 101 32 34 360 Cannon 307 | . . . . 37 42 41 121 42 . . 24 Launcher 26 | . . 8 4 . 6 . . 5 . . 3 Special . | . . . . . . . . . . . . Kinetic 826 | . 84 57 . 49 52 41 36 82 32 34 359 Thermal 375 | . . 5 . 24 34 41 185 61 . . 25 Explosive 26 | . . 8 4 . 6 . . 5 . . 3 Electromagnetic 6 | . . . . . . . 6 . . . . Robot Hit Streak 38 | . 12 14 3 15 13 11 38 25 10 13 32 Robot Miss Streak 4 | . 4 4 1 3 4 4 4 4 2 1 3 Penetration Max 1 | . . . . . 1 1 1 1 1 . 1 Secondary Targets 17 | . 1 . . . . . . 2 . . 14 Max Gunslinging Chain 1 | . 1 . . . . . . 1 . . 1 Shots Hit Robots 863 | . 56 45 3 52 48 57 159 98 25 22 298 Core Hits 435 | . 20 18 8 23 33 24 59 57 12 8 173 Critical Kills 50 | . . . . . . . 1 8 1 1 39 Critical Parts Destroyed 60 | . . . . . . 1 1 5 3 4 46 Critical Strikes 120 | . . . . 3 . 1 3 16 4 6 87 Burn 4 | . . . . 2 . . 1 1 . . . Meltdown 5 | . . . . . . . 1 3 . . 1 Destroy 110 | . . . . . . 1 1 12 4 6 86 Blast 1 | . . . . 1 . . . . . . . Melee Attacks . | . . . . . . . . . . . . Impact . | . . . . . . . . . . . . Slashing . | . . . . . . . . . . . . Piercing . | . . . . . . . . . . . . Sneak Attacks . | . . . . . . . . . . . . Combat Hostiles . | . . . . . . . . . . . . Follow-up Attacks . | . . . . . . . . . . . . Damage Inflicted 25722 | . 554 757 290 1061 1981 1440 3920 3582 710 979 10448 Guns 15881 | . 554 433 . 464 516 603 1459 1738 705 580 8829 Cannons 6327 | . . . . 581 706 825 2321 1022 . . 872 Explosions 3306 | . . 300 246 . 713 . 119 822 . 384 722 Melee . | . . . . . . . . . . . . Ramming 208 | . . 24 44 16 46 12 21 . 5 15 25 Kinetic 15247 | . 554 361 . 755 610 603 569 1681 705 580 8829 Thermal 7289 | . . 72 . 290 867 825 3217 1079 . . 939 Explosive 2309 | . . 300 246 . 458 . . 822 . . 483 Electromagnetic 669 | . . . . . . . 113 . . 384 172 Impact . | . . . . . . . . . . . . Slashing . | . . . . . . . . . . . . Piercing . | . . . . . . . . . . . . Highest Corruption 18 | . . . . 1 . . . . . 7 18 Average Corruption 8 | . . . . 1 . . . . . 3 9 Corruption Purged . | . . . . . . . . . . . . Corruption Blocked . | . . . . . . . . . . . . Effects 77 | . . . . . . . . . . 1 76 Message Errors 18 | . . . . . . . . . . 1 17 Matter Fused 21 | . . . . . . . . . . . 21 Heat Flow Errors 4 | . . . . . . . . . . . 4 Energy Discharges 6 | . . . . . . . . . . . 6 Data Loss (minor) 8 | . . . . . . . . . . . 8 Data Loss (major) 8 | . . . . . . . . . . . 8 Misfires 2 | . . . . . . . . . . . 2 Alerts 2 | . . . . . . . . . . . 2 Misdirections 4 | . . . . . . . . . . . 4 Weapon Failures 4 | . . . . . . . . . . . 4 Overload Shots 11 | . . . . . . . . . . . 11 Effects 1 | . . . . . . . . . . . 1 Energy Bleed 1 | . . . . . . . . . . . 1 Overflow Damage 292 | . . 1 . 2 114 6 54 2 . 4 109 Projectiles 105 | . . . . 2 . 6 15 . . . 82 Explosions 186 | . . . . . 114 . 39 2 . 4 27 Melee 1 | . . 1 . . . . . . . . . Knockbacks 8 | . . . . 7 . 1 . . . . . Impact 1 | . . . . . . 1 . . . . . Kinetic 6 | . . . . 6 . . . . . . . Secondary 1 | . . . . 1 . . . . . . . Self-Inflicted Damage 201 | . . 7 16 . . . 49 . . 95 34 Shots 5 | . . 1 1 . . . 1 . . 1 1 Rammed 30 | . . 1 9 3 7 . 3 . 1 1 5 Targets Rammed 35 | . . 3 10 3 7 1 3 . 1 1 6 Kicked . | . . . . . . . . . . . . Crushed 5 | . . 2 1 . . 1 . . . . 1 Highest Temperature 405 | . 18 2 4 405 54 108 168 27 . . 309 Average Temperature 69 | . 10 2 4 125 12 43 34 11 . . 83 Received Heat Transfer 3501 | . 243 120 96 342 150 294 723 326 20 65 1122 Effects 2 | . . . . 1 . . . . . . 1 Energy Bleed 2 | . . . . 1 . . . . . . 1 Siege Activations 21 | . . . . . . . . 2 . 2 17 Total Turns 476 | . . . . . . . . 101 . 14 361 Longest Duration 72 | . . . . . . . . 59 . 9 72 Robots Corrupted . | . . . . . . . . . . . . Combat Hostiles . | . . . . . . . . . . . . Parts Fried 7 | . . . . . . . 2 . . 5 . Impact Corruptions 1 | . . 1 . . . . . . . . . Robots Melted 8 | . . . . . . . 3 3 . . 2 Combat Hostiles 8 | . . . . . . . 3 3 . . 2 Parts Melted 41 | . . . . . 1 2 19 10 . . 9 Heat Transferred 11498 | . . 185 . 888 1038 1221 5251 1785 . . 1130 Parts Sabotaged 4 | . . . . . . . . . . . 4 Parts Stolen . | . . . . . . . . . . . . Parts Stripped . | . . . . . . . . . . . . Power Chain Reactions 1 | . . . . . . . 1 . . . . Alert | -11 -10 -9 -9 -8 -7 -6 -6 -6 -6 -6 -5 ------- Run | Yrd Mat Mat Min Mat Fac Fac Ext Cet Arc Hub Fac Peak Influence 2278 | . 157 257 176 312 476 620 550 519 398 323 2278 Initial 308 | . . 3 41 68 100 221 215 308 207 139 67 Average 383 | . 61 75 120 138 245 396 271 430 353 126 874 Maximum Alert Level 5 | . . 1 . 1 2 2 2 2 1 1 5 Low Security (%) 42 | 100 100 92 100 81 45 . 40 . . 96 10 Level 1 28 | . . 7 . 18 39 49 36 30 100 3 27 Level 2 18 | . . . . . 15 50 22 69 . . 20 Level 3 . | . . . . . . . . . . . 2 Level 4 3 | . . . . . . . . . . . 15 Level 5 1 | . . . . . . . . . . . 6 High Security 3 | . . . . . . . . . . . 16 Max Security . | . . . . . . . . . . . . Squads Dispatched 48 | . 1 2 1 2 6 2 5 1 . . 28 Investigation 7 | . . . . . 2 1 2 1 . . 1 Extermination 7 | . . . . . 2 1 . . . . 4 Reinforcement 16 | . 1 2 1 2 2 . 3 . . . 5 Assault 17 | . . . . . . . . . . . 17 Garrison 1 | . . . . . . . . . . . 1 Intercept . | . . . . . . . . . . . . Searches Triggered . | . . . . . . . . . . . . Construction Impeded 4 | . . . 1 . . . 1 . . . 2 Haulers Reinforced 3 | . . . . . . . . . . . 3 Active Scanning Responses . | . . . . . . . . . . . . Cargo Convoy Interrupts 2 | . . . . . 1 . . . . . 1 Stealth | -11 -10 -9 -9 -8 -7 -6 -6 -6 -6 -6 -5 --------- Run | Yrd Mat Mat Min Mat Fac Fac Ext Cet Arc Hub Fac Distress Signals 19 | . 1 3 . 3 1 2 3 2 . 1 3 Communications Jammed . | . . . . . . . . . . . . Distress Signals . | . . . . . . . . . . . . Times Spotted 327 | . 11 15 3 22 22 19 43 26 5 8 153 Peak Tracking Total 28 | . 3 3 2 8 4 5 5 7 1 5 28 Tactical Retreats 23 | . . . . 1 1 2 4 . . . 15 Traps | -11 -10 -9 -9 -8 -7 -6 -6 -6 -6 -6 -5 ------- Run | Yrd Mat Mat Min Mat Fac Fac Ext Cet Arc Hub Fac Traps Triggered 5 | . . . . 1 1 . 2 . . . 1 Indirectly . | . . . . . . . . . . . . Trap Hack Attempts . | . . . . . . . . . . . . Triggered . | . . . . . . . . . . . . Disarmed . | . . . . . . . . . . . . Reprogrammed 1 | . . . . . . . 1 . . . . Reused . | . . . . . . . . . . . . Traps Extracted . | . . . . . . . . . . . . Installed . | . . . . . . . . . . . . Triggered 2 | . . . . . 1 . 1 . . . . Machines | -11 -10 -9 -9 -8 -7 -6 -6 -6 -6 -6 -5 ---------- Run | Yrd Mat Mat Min Mat Fac Fac Ext Cet Arc Hub Fac Machines Disabled 53 | . . 1 . . 13 . 9 1 3 5 21 Max in Single Turn 12 | . . 1 . . 12 . 4 1 1 2 9 Garrison Access 1 | . . . . . . . . . . . 1 Network Hub 1 | . . . . . . . . . . 1 . Energy Cycler 2 | . . . . . . . 2 . . . . Machines Repaired . | . . . . . . . . . . . . Machines Dismantled . | . . . . . . . . . . . . Machines Sabotaged . | . . . . . . . . . . . . Overloaded Fab Kills . | . . . . . . . . . . . . Hacking | -11 -10 -9 -9 -8 -7 -6 -6 -6 -6 -6 -5 --------- Run | Yrd Mat Mat Min Mat Fac Fac Ext Cet Arc Hub Fac Machines Accessed 24 | . 3 1 . 1 2 3 6 2 . 3 3 Terminals 20 | . 3 1 . . 1 2 6 2 . 3 2 Fabricators 2 | . . . . . 1 . . . . . 1 Repair Stations . | . . . . . . . . . . . . Recycling Units . | . . . . . . . . . . . . Scanalyzers 2 | . . . . 1 . 1 . . . . . Garrison Access . | . . . . . . . . . . . . Total Hacks 62 | . 8 2 . 7 6 7 15 5 . 4 8 Successful 25 | . 3 2 . 7 2 3 4 1 . 2 1 Failed 37 | . 5 . . . 4 4 11 4 . 2 7 Catastrophic 7 | . 1 . . . 1 . . 1 . 1 3 Database Lockouts . | . . . . . . . . . . . . Manual 1 | . 1 . . . . . . . . . . Terminals 46 | . 8 2 . . 3 4 15 5 . 4 5 Fabricators 6 | . . . . . 3 . . . . . 3 Repair Stations . | . . . . . . . . . . . . Recycling Units . | . . . . . . . . . . . . Scanalyzers 10 | . . . . 7 . 3 . . . . . Garrison Access . | . . . . . . . . . . . . Terminal Hacks 14 | . 3 2 . . . 2 4 1 . 2 . Record 1 | . . . . . . . . 1 . . . Prototype ID Bank 2 | . 1 . . . . . 1 . . . . Open Door 2 | . . . . . . 1 1 . . . . Open DSF 1 | . . . . . . 1 . . . . . Emergency Access Points 1 | . . . . . . . . . . 1 . Terminal Index 1 | . 1 . . . . . . . . . . Alert Level 1 | . . . . . . . 1 . . . . Unreport Threat 1 | . . . . . . . . . . 1 . Locate Traps 1 | . 1 . . . . . . . . . . Reprogram Traps 1 | . . . . . . . 1 . . . . Hauler Manifests 1 | . . 1 . . . . . . . . . Registered Components 1 | . . 1 . . . . . . . . . Fabricator Hacks 3 | . . . . . 2 . . . . . 1 Load Schematic 2 | . . . . . 1 . . . . . 1 Build 1 | . . . . . 1 . . . . . . Repair Station Hacks . | . . . . . . . . . . . . Recycling Unit Hacks . | . . . . . . . . . . . . Scanalyzer 8 | . . . . 7 . 1 . . . . . Insert Component 4 | . . . . 3 . 1 . . . . . Analyze 4 | . . . . 4 . . . . . . . Garrison Access Hacks . | . . . . . . . . . . . . Unauthorized Hacks . | . . . . . . . . . . . . Terminals . | . . . . . . . . . . . . Fabricators . | . . . . . . . . . . . . Repair Stations . | . . . . . . . . . . . . Recycling Units . | . . . . . . . . . . . . Scanalyzers . | . . . . . . . . . . . . Garrison Access . | . . . . . . . . . . . . Data Cores Recovered . | . . . . . . . . . . . . Used . | . . . . . . . . . . . . Hacking Detections 20 | . 3 1 . . 2 2 5 1 . 3 3 Full Trace Events 7 | . . . . . 2 1 2 1 . . 1 Feedback Events . | . . . . . . . . . . . . Feedback Blocked . | . . . . . . . . . . . . Robot Schematics Acquired . | . . . . . . . . . . . . Robots Built . | . . . . . . . . . . . . Authchips . | . . . . . . . . . . . . Time . | . . . . . . . . . . . . Total Robot Build Rating . | . . . . . . . . . . . . Part Schematics Acquired 3 | . . . . 3 . . . . . . . Parts Built 1 | . . . . . 1 . . . . . . Authchips . | . . . . . . . . . . . . Time 42 | . . . . . 42 . . . . . . Total Part Build Rating 4 | . . . . . 4 . . . . . . Parts Repaired . | . . . . . . . . . . . . Time . | . . . . . . . . . . . . Parts Recycled . | . . . . . . . . . . . . Recycled Matter . | . . . . . . . . . . . . Retrieved Matter . | . . . . . . . . . . . . Retrieved Components . | . . . . . . . . . . . . Parts Scanalyzed 4 | . . . . 3 . 1 . . . . . Part Schematics Acquired 3 | . . . . 3 . . . . . . . Parts Damaged . | . . . . . . . . . . . . Bothacking | -11 -10 -9 -9 -8 -7 -6 -6 -6 -6 -6 -5 ------------ Run | Yrd Mat Mat Min Mat Fac Fac Ext Cet Arc Hub Fac Used RIF Installer . | . . . . . . . . . . . . Robots Hacked . | . . . . . . . . . . . . Non-combat . | . . . . . . . . . . . . Combat . | . . . . . . . . . . . . Robot Hacks Applied . | . . . . . . . . . . . . Relay Couplers Released . | . . . . . . . . . . . . Fabnet Peak Effective % . | . . . . . . . . . . . . Robots Rewired 6 | . . . . . . . 6 . . . . Allies Hacked . | . . . . . . . . . . . . Hacks Repelled . | . . . . . . . . . . . . Allies | -11 -10 -9 -9 -8 -7 -6 -6 -6 -6 -6 -5 -------- Run | Yrd Mat Mat Min Mat Fac Fac Ext Cet Arc Hub Fac Total Allies 11 | . . . . . . . 11 . . . . Largest Group 4 | . . . . . . . 4 2 . . . Highest-Rated Group 249 | . . . . . . . 249 59 . . . Highest-Rated Ally 159 | . . . . . . . 159 34 . . . Total Orders . | . . . . . . . . . . . . Ally Attacks 88 | . . . . . . . 84 4 . . . Total Damage 2134 | . . . . . . . 2018 116 . . . Kills 14 | . . . . . . . 13 1 . . . Allies Corrupted . | . . . . . . . . . . . . Allies Melted . | . . . . . . . . . . . . Intel | -11 -10 -9 -9 -8 -7 -6 -6 -6 -6 -6 -5 ------- Run | Yrd Mat Mat Min Mat Fac Fac Ext Cet Arc Hub Fac Robot Analysis Total . | . . . . . . . . . . . . Derelict Logs Recovered . | . . . . . . . . . . . . Drone Launches . | . . . . . . . . . . . . Drone Recoveries . | . . . . . . . . . . . . Exploration | -11 -10 -9 -9 -8 -7 -6 -6 -6 -6 -6 -5 ------------- Run | Yrd Mat Mat Min Mat Fac Fac Ext Cet Arc Hub Fac Turns Passed 10341 | 50 654 809 69 911 1070 443 2365 738 327 434 2471 Spaces Moved 3673 | 39 239 366 27 335 329 124 748 273 103 149 941 Core 35 | 7 . . . . . . . . . . 28 Treads 2917 | . . 155 27 335 329 124 748 273 103 149 674 Legs 482 | 32 239 211 . . . . . . . . . Wheels . | . . . . . . . . . . . . Hover . | . . . . . . . . . . . . Flight 239 | . . . . . . . . . . . 239 Fastest Speed 32 | 50 120 160 160 160 161 250 235 152 160 240 32 Average Speed 206 | 107 211 177 160 221 239 250 245 162 236 240 173 Slowest Speed 1200 | 120 260 190 160 240 250 250 325 235 240 240 1200 Overloaded Moves . | . . . . . . . . . . . . Propulsion Burnouts . | . . . . . . . . . . . . Robots Hopped 4 | . . . . . . . . . . . 4 Cave-ins Triggered . | . . . . . . . . . . . . Exploration Rate (%) 33 | 4 46 36 8 21 15 4 75 70 72 18 29 Regions Visited 11 Branch Regions 5 Pre-discovered Areas . | . . . . . . . . . . . . Known Exits Taken . | . . . . . . . . . . . . Unknown Exits Taken 11 | 1 1 1 1 1 1 1 1 1 1 1 . Scrap Searched . | . . . . . . . . . . . . Spaces Dug 7 | . . . . . . . . . . 3 4 Terrain Destroyed 533 | . . 37 43 7 50 1 43 12 10 180 150 Melee . | . . . . . . . . . . . . Projectile 124 | . . . . 7 1 . 4 12 10 12 78 AOE 407 | . . 37 43 . 49 . 38 . . 168 72 Terrain Rammed . | . . . . . . . . . . . . Walls Destroyed . | . . . . . . . . . . . . Machines Disabled . | . . . . . . . . . . . . Actions | -11 -10 -9 -9 -8 -7 -6 -6 -6 -6 -6 -5 --------- Run | Yrd Mat Mat Min Mat Fac Fac Ext Cet Arc Hub Fac Total 5172 | 44 313 461 42 431 512 174 1046 422 157 191 1379 Wait 393 | . 22 31 . 5 91 1 39 12 22 23 147 Move 3655 | 38 238 365 26 334 329 123 747 272 102 148 933 Hop 4 | . . . . . . . . . . . 4 Pick Up 95 | . 4 10 . 23 7 3 12 13 4 . 19 Fast Attach 61 | 6 2 1 . 3 5 1 13 9 1 . 20 Attach 44 | . . 5 1 1 4 2 6 6 . . 19 Detach 16 | . . 3 . . 3 . 3 3 1 . 3 Swap 51 | . 3 2 1 8 5 1 10 6 3 1 11 Drop 99 | . 2 4 . 17 12 1 17 18 7 1 20 Fire 636 | . 42 37 4 37 48 41 114 83 16 17 197 Melee . | . . . . . . . . . . . . Ram . | . . . . . . . . . . . . Kick . | . . . . . . . . . . . . Crush 34 | . . 3 10 3 6 1 3 . 1 1 6 Escape Stasis 6 | . . . . . 2 . 4 . . . . Rewire 78 | . . . . . . . 78 . . . . Trap . | . . . . . . . . . . . . Miscellaneous . | . . . . . . . . . . . . Route ------- -11/Scrapyard -10/Materials (discovered 2 exits: *Mat / [*Min]) -9/Materials -9/Mines -8/Materials -7/Factory -6/Factory -6/Extension (discovered 2 exits: *Fac / *Cet) -6/Cetus (discovered 2 exits: *Fac / [*Arc]) -6/Archives (discovered 2 exits: *Fac / *Hub) -6/Hub_04(d) -5/Factory History --------- Turn | Location | Event 3 | -11/Scrapyard | Discovered new exit (range 16) 51 | -11/Scrapyard | Entered Materials 529 | -10/Materials | Discovered new exit (range 11) 585 | -10/Materials | Build established: Scavenger-Mutant 648 | -10/Materials | Discovered new exit (range 13) 705 | -10/Materials | Entered another Materials area 705 | -9/Materials | Evolved 2 slots: Propulsion x1, Utility x1 1364 | -9/Materials | Discovered new exit (range 14) 1514 | -9/Materials | Entered Mines 1557 | -9/Mines | Discovered new exit (range 8) 1583 | -9/Mines | Entered Materials 1583 | -8/Materials | Evolved 2 slots: Utility x2 2090 | -8/Materials | Build established: Mutant 2342 | -8/Materials | Discovered new exit (range 11) 2494 | -8/Materials | Entered Factory 2494 | -7/Factory | Evolved 2 slots: Utility x2 2801 | -7/Factory | Build established: Scavenger-Mutant 3064 | -7/Factory | Fabricated Hrd. Heavy Armor Plating (x1) 3119 | -7/Factory | Build established: Mutant 3263 | -7/Factory | Cargo convoy interrupted 3495 | -7/Factory | Discovered new exit (range 5) 3564 | -7/Factory | Entered another Factory area 3564 | -6/Factory | Evolved 2 slots: Utility x2 3849 | -6/Factory | Build established: Scavenger-Mutant 3937 | -6/Factory | Discovered new exit (range 9) 4007 | -6/Factory | Entered Extension 4009 | -6/Extension | Disrupted transfer network 4172 | -6/Extension | Lost 3 parts (1u2w) 4483 | -6/Extension | Lost 3 allies 4843 | -6/Extension | Lost 3 parts (2u1w) 5276 | -6/Extension | Rescued A7 5578 | -6/Extension | Spotted B-75 Beast 5613 | -6/Extension | Spotted B-75 Beast 5628 | -6/Extension | Destroyed B-75 Beast 5637 | -6/Extension | Destroyed B-75 Beast 5650 | -6/Extension | Lost 3 allies 5841 | -6/Extension | Energy Cycler disabled 5841 | -6/Extension | Rescued a captive Derelict 5841 | -6/Extension | Rescued a captive Derelict 5841 | -6/Extension | Rescued a captive Derelict 5842 | -6/Extension | Rescued a captive Derelict 5842 | -6/Extension | Rescued a captive Derelict 5842 | -6/Extension | Rescued a captive Derelict 5844 | -6/Extension | Rescued a captive Derelict 5846 | -6/Extension | Rescued a captive Derelict 5848 | -6/Extension | Rescued a captive Derelict 5850 | -6/Extension | Rescued a captive Derelict 5932 | -6/Extension | Murdered A7 5932 | -6/Extension | Destroyed A7 5935 | -6/Extension | Extracted ID and sensor layout for unrecognized location from A7's data core 6344 | -6/Extension | Discovered new exit (range 10) 6348 | -6/Extension | Discovered new exit (range 6) 6372 | -6/Extension | Entered Cetus 6372 | -6/Cetus | Accompanied by 2 allies 6402 | -6/Cetus | Spotted Cetus Guard 6402 | -6/Cetus | Spotted Cetus Guard 6405 | -6/Cetus | Spotted Cetus Guard 6408 | -6/Cetus | Destroyed Cetus Guard 6424 | -6/Cetus | Allies destroyed Cetus Guard 6477 | -6/Cetus | Destroyed Cetus Guard 6477 | -6/Cetus | Spotted Cetus Guard 6480 | -6/Cetus | Destroyed Cetus Guard 6774 | -6/Cetus | Found a strange terminal 6854 | -6/Cetus | Destroyed 9 combat bots 6892 | -6/Cetus | Discovered new exit (range 16) 6920 | -6/Cetus | Spotted Cetus Guard 6921 | -6/Cetus | Spotted Cetus Guard 6922 | -6/Cetus | Spotted Cetus Guard 6929 | -6/Cetus | Spotted Cetus Guard 6945 | -6/Cetus | Destroyed Cetus Guard 6954 | -6/Cetus | Destroyed Cetus Guard 6972 | -6/Cetus | Destroyed Cetus Guard 6978 | -6/Cetus | Destroyed Cetus Guard 6998 | -6/Cetus | Discovered new exit (range 16) 7001 | -6/Cetus | Lost 3 parts (1p2u) 7015 | -6/Cetus | Met Revision 17 7110 | -6/Cetus | Entered Archives 7267 | -6/Archives | Discovered new exit (range 16) 7296 | -6/Archives | Discovered new exit (range 15) 7437 | -6/Archives | Entered Hub_04(d) 7519 | -6/Hub_04(d) | Discovered new exit (range 15) 7654 | -6/Hub_04(d) | Core integrity fell below 50% 7820 | -6/Hub_04(d) | Network Hub disabled 7862 | -6/Hub_04(d) | Spotted Lightning 7868 | -6/Hub_04(d) | Spotted Lightning 7871 | -6/Hub_04(d) | Spotted Lightning 7871 | -6/Hub_04(d) | Entered Factory 7871 | -5/Factory | Evolved 2 slots: Power x1, Utility x1 8252 | -5/Factory | Spotted B-75 Beast 8869 | -5/Factory | Destroyed 9 combat bots 9163 | -5/Factory | System corruption reached 10% 9294 | -5/Factory | Garrison activated, responded to threat 9358 | -5/Factory | Destroyed 7 combat bots 9371 | -5/Factory | First assault squad dispatched 9721 | -5/Factory | Cargo convoy interrupted 9836 | -5/Factory | Lost 8 parts (2p1n4u1w) 9844 | -5/Factory | Destroyed 11 combat bots 9938 | -5/Factory | High security lockdown imminent 9969 | -5/Factory | Lost 4 parts (1p1u2w) 10018 | -5/Factory | High security lockdown engaged 10243 | -5/Factory | Released all parts (7) 10274 | -5/Factory | Lost 11 parts (1p2n1u7w) 10293 | -5/Factory | Core integrity fell below 50% 10335 | -5/Factory | Core integrity fell below 20% 10342 | -5/Factory | Destroyed by P-70 Sage with Tesla Rifle Last Messages --------------- 10316_ Slug penetrates Wall. 10316_ Penetrated by Slug. 10320_ O-24 Administrator: "IFF HANDSHAKE FAILED. SECURING TERMINAL." 10325_ System corrupted: Component data lost. 10325_ Slug penetrates Wall. 10328_ Penetrated by Slug. 10331_ C-30 ARC bursts open, deploying its payload. 10331_ P-70 Sage unfolds itself. 10331_ E-15 Imp unfolds itself. 10331_ VTOL Module blown off. 10331_ E-15 Imp destroyed. 10333_ Acquired VTOL Module. 10334_ VTOL Module destroyed. 10334_ Penetrated by Slug. 10334_ Acquired 5 matter. 10335_ P-70 Sage resets P-70 Sage, system corruption cleaned. 10337_ Critical hit (Burn: +37). 10337_ Slug penetrates Wall. 10339_ P-70 Sage resets Y-64 Sentinel, system corruption cleaned. 10339_ Penetrated by Slug. Map ----- +----------------------------------------------------+ | ?????????????????????????????????????????????????? | | ?????????????????????????????????????????????????? | | ?????????????????????????????????????????????????? | | ?????????????????????????????????????????????????? | | ?????????????????????????????????????????????????? | | ?????????????????????????????????????????????????? | | ?????????????????????????????????????????????????? | | ?????????????????????????????????????????????????? | | ?????????????????????????????????????????????????? | | ?????????????????????????????????????????????????? | | ?????????????????????????????????????????????????? | | ?????????????????????????????????????????????????? | | ?????????????????????????????????????????????????? | | ????#######??????????????????????????????????????? | | ????! """??????????????????????????????????????? | | ???# ""T"" #??###########??????????????????????? | | ???#! "" "" #??# ]#??????????????????????? | | """# #??# ! #??????????????????????? | | """# """ """ #??#"" #??????????????????????? | | """# """ """ #??#"" ! #??????????????????????? | | """# """ """ #??#"T """ #??????????????????????? | | """# #??#"" """ #??????????????????????? | | #####+#####??#"" """ #??????????????????????? | | # ### #???# #??????????????????????? | | ############+#########???????????????? | | %= % p @ ????????? | | / pp ????????? | | ????????? | | ] ############################?????????? | | #+### #????????????????????????????????????? | | ????#########????????????????????????????????????? | | ?????????????????????????????????????????????????? | | ?????????????????????????????????????????????????? | | ?????????????????????????????????????????????????? | | ?????????????????????????????????????????????????? | | ?????????????????????????????????????????????????? | | ?????????????????????????????????????????????????? | | | | | | | | | | | | | | | | | | | | | | | | | | | +----------------------------------------------------+ Best States ------------- Heat Dissipation 78 Energy Generation 53 Energy Capacity 600 Matter Stores 300 Matter Capacity 300 Sight Range 20 Terrain Scan Density 10 Power Amplification 20 Armor Coverage 2850 Propulsion Shielding 33 Weapon Shielding 33 Point Defense Rating 80 Phase Shifting 5 Evasion (%) 63 Targeting Accuracy 10 Target Analysis 6 Armor Integrity Analysis 30 Recoil Reduction 3 Item Schematics ----------------- Adv. Beam Cannon | -8/Materials | Scanalyzed Hrd. Heavy Armor Plating | -8/Materials | Scanalyzed Gauss Rifle | -8/Materials | Scanalyzed Robot Schematics ------------------ None Fabricated ------------ Hrd. Heavy Armor Plating | x1 | -7/Factory Alien Tech Used ----------------- None Achievements -------------- None Challenges ------------ None Game ------ Seed ProjectionPrecisionCannon Manual? 0 Play Time 01:24:33 Cumulative 609.7 hours Start 2024.03.04 @ 05:43:57 End 2024.03.04 @ 07:16:32 Sessions 1 Manual Loads 0 Difficulty Rogue Special Mode None Game No. 385 Rogue 385 Adventurer 0 Explorer 0 Win Type - Total 38 Types 25/1/6/6/0/0/0/0/0 Lore% 79 Gallery% 84 Achievement% 78 Wizard Run 0 Options --------- Layout 0 ASCII 1 Keyboard 1 Movement Numpad Keybinds 0 Fullscreen 1 Font 36/SmallcapsGlow++ Map View 76x50 Zoom Use 0% Tactical HUD 1 Map Filters NONE Filters NONE Steam 1 RUN: 87d62df6-1c3a-434b-86d1-89f23897f675